Cogmind - Beta 15 @@@ ROGUE MODE // 2025.07.20 @ 06:14:28 Player: shapeshifter Result: Destroyed by 1Y-RYI(j) with Overtuned Pulse Rifle Performance ------------- Evolutions (0) 0 Regions Visited (4) 800 Robots Destroyed (9) 45 Value Destroyed (67) 67 Prototype IDs (2) 40 Alien Tech Used (0) 0 Bonus (311) 311 TOTAL SCORE: 1263 Bonus ------- Follower Combat Kills 50 Registered with UFD 300 Friendly Fire -39 Cogmind --------- Core Integrity 0/250 Matter 264/300 Energy 11/100 System Corruption 0% Temperature Cool (24) Movement Core (100) Ox1 Location -8/Scraptown Parts ------- > --- POWER (1) -------- (None) > --- PROPULSION (2) --- (None) > --- UTILITY (2) ------ A0-MCA's Component Scanner > --- WEAPON (2) ------- Shock Bomb Launcher > --- INVENTORY (5) ---- Ion Engine Improved Light Armor Plating Hardlight Generator Phase Cannon Peak State ------------ > --- POWER ------------ Light Deuterium Engine > --- PROPULSION ------- Light Treads Light Treads > --- UTILITY ---------- Small Storage Unit A0-MCA's Component Scanner > --- WEAPON ----------- Flak Cannon Heavy Missile Launcher > --- INVENTORY -------- Ion Engine Hardened Medium Armor Plating Improved Light Armor Plating Hardlight Generator V3-11A's Pendant Phase Cannon Shock Bomb Launcher Enhanced Flamer [Rating: 24] Favorites ----------- Power Ion Engine Engine Ion Engine Propulsion Light Treads Treads Light Treads Leg Aluminum Leg Utility Small Storage Unit Device Seismic Detector Storage Small Storage Unit Processor A0-MCA's Component Scanner Protection Hardened Medium Armor Plating Weapon Flak Cannon Energy Gun Medium Laser Energy Cannon Phase Cannon Ballistic Gun Assault Rifle Ballistic Cannon Flak Cannon Launcher Rocket Launcher Build | -11 -10 -10 -10 -8 ------- Run | Yrd Mat Min Sub Scr Slots Evolved . | . . . . . Power . | . . . . . Propulsion . | . . . . . Utility . | . . . . . Weapon . | . . . . . Parts Attached 19 | 7 . 3 2 7 Power 2 | 1 . . . 1 Engine 2 | 1 . . . 1 Core . | . . . . . Reactor . | . . . . . Propulsion 4 | 2 . 2 . . Treads 2 | 2 . . . . Leg 2 | . . 2 . . Wheel . | . . . . . Hover . | . . . . . Flight . | . . . . . Utility 5 | 2 . . 1 2 Device 2 | 1 . . 1 . Storage 1 | 1 . . . . Processor 1 | . . . . 1 Hackware . | . . . . . Protection 1 | . . . . 1 Artifact . | . . . . . Weapon 8 | 2 . 1 1 4 Energy Gun 1 | 1 . . . . Energy Cannon 1 | . . . . 1 Ballistic Gun 1 | 1 . . . . Ballistic Cannon 1 | . . . . 1 Launcher 4 | . . 1 1 2 Special Weapon . | . . . . . Impact Weapon . | . . . . . Slashing Weapon . | . . . . . Piercing Weapon . | . . . . . Special Melee Weapon . | . . . . . Unidentified Prototypes 1 | . . . 1 . Parts Lost 5 | . . . . 5 Power 1 | . . . . 1 Propulsion 2 | . . . . 2 Utility . | . . . . . Weapon 2 | . . . . 2 Highest Loss Streak 5 | . . . . 5 To Critical Strikes . | . . . . . Average Backups 7 | 3 6 8 8 7 Power . | . 1 1 1 1 Propulsion 1 | 1 2 2 2 . Utility 3 | . 1 3 3 3 Weapon 2 | . 1 2 2 2 Tool/Special . | . . . . . Unused Backups 13 | 1 . . 1 11 Power 1 | . . . . 1 Propulsion 1 | . . . . 1 Utility 8 | 1 . . 1 6 Weapon 3 | . . . . 3 Tool/Special . | . . . . . Average Slot Usage (%) 97 | . 100 100 100 95 Engine 13 | . 14 14 14 13 Treads 17 | . 28 . . 25 Leg 10 | . . 27 28 2 Device 5 | . 14 14 14 . Storage 13 | . 14 14 14 13 Processor 2 | . . . . 4 Protection 5 | . . . . 9 Energy Gun 4 | . 14 13 10 . Ballistic Gun 5 | . 14 14 14 . Ballistic Cannon 6 | . . . . 9 Launcher 9 | . . . 3 13 Peak Build Rating 24 | 7 7 7 10 24 Average Rating 12 | 5 7 7 8 16 On Entrance 6 | . 7 7 7 10 Naked Turns . | . . . . . Heaviest Build 31 | 15 15 16 17 31 Greatest Support 40 | 40 40 20 20 40 Greatest Overweight (x) 1 | . . . . 1 Average Overweight (x) . | . . . . . Largest Inventory Capacity 8 | 8 8 8 8 8 Average Capacity 7 | 7 8 8 8 7 Most Carried 8 | 7 8 8 8 8 Average Carried 7 | 3 6 8 7 7 Final Capacity 8 | 8 8 8 8 5 Final Carried 8 | 4 8 8 8 4 Class Distribution -------------------- 100% | Mutant Dominant Class ---------------- Mutant | -10/Materials Mutant | -10/Mines Mutant | -10/Subcaves Mutant | -8/Scraptown Resources | -11 -10 -10 -10 -8 ----------- Run | Yrd Mat Min Sub Scr Matter Collected 461 | 285 . 51 44 81 Remotely . | . . . . . Salvage Created 209 | 127 . 56 26 . Parts 20 | 10 . 5 5 . Haulers Intercepted . | . . . . . Recyclers Shooed 1 | . . 1 . . Parts Field Recycled . | . . . . . Retrieved Matter . | . . . . . Parts Self-Destructed . | . . . . . Prevented . | . . . . . Kills | -11 -10 -10 -10 -8 ------- Run | Yrd Mat Min Sub Scr Combat Hostiles Destroyed 4 | . . 4 . . Guns 3 | . . 3 . . AOE 1 | . . 1 . . Classes Destroyed 5 | 2 . 1 2 . Tunneler 3 | 3 . . . . Recycler 1 | 1 . . . . Swarmer 4 | . . 4 . . Grunt 1 | . . . 1 . Artisan 1 | . . . 1 . Best Kill Streak 4 | 4 . 3 . . Combat Bots Only 3 | . . 3 . . Max Kills in Single Turn 1 | 1 . 1 1 . Gunslinging . | . . . . . Exploded 1 | . . 1 . . Melee . | . . . . . Uniques/NPCs Destroyed . | . . . . . Combat | -11 -10 -10 -10 -8 -------- Run | Yrd Mat Min Sub Scr Hostile Shots Fired 80 | . . 17 1 62 Missed 27 | . . 7 . 20 Hits 53 | . . 10 1 42 Melee 1 | . . . . 1 Projectile 52 | . . 10 1 41 Critical Strikes 1 | . . . . 1 Damage Taken 913 | . . 84 105 724 Core 252 | . . 20 55 177 Absorbed by Shields . | . . . . . Core Remaining (%) 100 | 100 . . . . Volleys Fired 18 | 5 . 8 3 2 Largest 2 | 2 . 2 2 1 Hottest 70 | 70 . 70 53 37 Shots Fired 32 | 10 . 14 6 2 Gun 26 | 10 . 13 3 . Cannon 1 | . . . . 1 Launcher 5 | . . 1 3 1 Special . | . . . . . Kinetic 17 | 5 . 8 3 1 Thermal 10 | 5 . 5 . . Explosive 4 | . . 1 3 . Electromagnetic 1 | . . . . 1 Robot Hit Streak 9 | 6 . 9 . 2 Robot Miss Streak 3 | 1 . 3 . 3 Penetration Max . | . . . . . Secondary Targets 1 | . . 1 . . Max Gunslinging Chain 1 | . . 1 . . Shots Hit Robots 16 | 6 . 9 . 1 Core Hits 16 | 4 . 4 6 2 Critical Kills . | . . . . . Critical Parts Destroyed . | . . . . . Critical Strikes 1 | . . 1 . . Burn 1 | . . 1 . . Melee Attacks . | . . . . . Impact . | . . . . . Slashing . | . . . . . Piercing . | . . . . . Sneak Attacks . | . . . . . Combat Hostiles . | . . . . . Follow-up Attacks . | . . . . . Damage Inflicted 517 | 75 5 169 150 118 Guns 171 | 75 . 96 . . Cannons 14 | . . . . 14 Explosions 312 | . . 58 150 104 Melee . | . . . . . Ramming 20 | . 5 15 . . Kinetic 86 | 38 . 34 . 14 Thermal 99 | 37 . 62 . . Explosive 208 | . . 58 150 . Electromagnetic 104 | . . . . 104 Impact . | . . . . . Slashing . | . . . . . Piercing . | . . . . . Highest Corruption . | . . . . . Average Corruption . | . . . . . Corruption Purged . | . . . . . Corruption Blocked . | . . . . . Overload Shots . | . . . . . Overflow Damage . | . . . . . Projectiles . | . . . . . Explosions . | . . . . . Melee . | . . . . . Knockbacks 2 | . . . . 2 Impact . | . . . . . Kinetic 2 | . . . . 2 Secondary . | . . . . . Self-Inflicted Damage 100 | . . . 87 13 Shots 3 | . . . 2 1 Rammed 1 | . 1 . . . Targets Rammed 3 | . 1 2 . . Kicked 2 | . . 2 . . Crushed . | . . . . . Highest Temperature 36 | 27 . 36 . 31 Average Temperature 14 | 12 . 16 . 14 Received Heat Transfer 247 | . . . 6 241 Siege Activations . | . . . . . Martial Activations . | . . . . . Shielding Activations . | . . . . . Robots Disrupted . | . . . . . Combat Hostiles . | . . . . . Robots Corrupted . | . . . . . Combat Hostiles . | . . . . . Parts Fried . | . . . . . Impact Corruptions . | . . . . . Robots Melted . | . . . . . Combat Hostiles . | . . . . . Parts Melted . | . . . . . Heat Transferred 370 | 111 . 259 . . Parts Sabotaged . | . . . . . Parts Stolen . | . . . . . Parts Stripped . | . . . . . Power Chain Reactions . | . . . . . Alert | -11 -10 -10 -10 -8 ------- Run | Yrd Mat Min Sub Scr Maximum Alert Level . | . . . . . Low Security (%) 100 | 100 100 100 . . Level 1 . | . . . . . Level 2 . | . . . . . Level 3 . | . . . . . Level 4 . | . . . . . Level 5 . | . . . . . High Security . | . . . . . Max Security . | . . . . . Peak Influence 83 | 15 15 83 . . Initial . | . . . . . Average 12 | 1 1 20 . . Influence Increases 193 | 20 20 153 . . Destroy 0b10 Robot/C 120 | . . 120 . . Destroy 0b10 Robot/NC 20 | 20 . . . . Destroy Leader 20 | . . 20 . . Allied During Kill 11 | . . 11 . . Successful Hack 20 | . 20 . . . Destroy Structure 2 | . . 2 . . Influence Decreases 193 | 20 20 153 . . Time Decay 193 | 20 20 153 . . Squads Dispatched . | . . . . . Investigation . | . . . . . Extermination . | . . . . . Reinforcement . | . . . . . Assault . | . . . . . Garrison . | . . . . . Intercept . | . . . . . Searches Triggered . | . . . . . Construction Impeded . | . . . . . Haulers Reinforced . | . . . . . Active Scanning Responses . | . . . . . Cargo Convoy Interrupts . | . . . . . Stealth | -11 -10 -10 -10 -8 --------- Run | Yrd Mat Min Sub Scr Distress Signals . | . . . . . Communications Jammed . | . . . . . Distress Signals . | . . . . . Times Spotted 25 | . . 6 1 18 Peak Tracking Total 25 | . . 3 1 25 Tactical Retreats . | . . . . . Traps | -11 -10 -10 -10 -8 ------- Run | Yrd Mat Min Sub Scr Traps Triggered . | . . . . . Indirectly . | . . . . . Trap Hack Attempts . | . . . . . Triggered . | . . . . . Disarmed . | . . . . . Reprogrammed . | . . . . . Reused . | . . . . . Traps Extracted . | . . . . . Installed . | . . . . . Triggered . | . . . . . Machines | -11 -10 -10 -10 -8 ---------- Run | Yrd Mat Min Sub Scr Machines Disabled . | . . . . . Max in Single Turn . | . . . . . Machines Repaired . | . . . . . Machines Dismantled . | . . . . . Machines Sabotaged . | . . . . . Overloaded Fab Kills . | . . . . . Hacking | -11 -10 -10 -10 -8 --------- Run | Yrd Mat Min Sub Scr Machines Accessed 4 | . 3 . . 1 Terminals 3 | . 3 . . . Fabricators . | . . . . . Repair Stations . | . . . . . Recycling Units . | . . . . . Scanalyzers . | . . . . . Garrison Access . | . . . . . Total Hacks 18 | . 11 . . 7 Successful 13 | . 6 . . 7 Failed 5 | . 5 . . . Catastrophic 2 | . 2 . . . Database Lockouts . | . . . . . Manual . | . . . . . Terminals 11 | . 11 . . . Fabricators . | . . . . . Repair Stations . | . . . . . Recycling Units . | . . . . . Scanalyzers . | . . . . . Garrison Access . | . . . . . Terminal Hacks 13 | . 6 . . 7 Robot Analysis 7 | . . . . 7 Level Access Points 1 | . 1 . . . Branch Access Points 1 | . 1 . . . Alert Level 1 | . 1 . . . Dispatch Records 1 | . 1 . . . Transport Status 1 | . 1 . . . Hauler Manifests 1 | . 1 . . . Fabricator Hacks . | . . . . . Repair Station Hacks . | . . . . . Recycling Unit Hacks . | . . . . . Scanalyzer . | . . . . . Garrison Access Hacks . | . . . . . Unauthorized Hacks . | . . . . . Terminals . | . . . . . Fabricators . | . . . . . Repair Stations . | . . . . . Recycling Units . | . . . . . Scanalyzers . | . . . . . Garrison Access . | . . . . . Data Cores Recovered . | . . . . . Used . | . . . . . Hacking Detections 2 | . 2 . . . Full Trace Events 1 | . 1 . . . Feedback Events . | . . . . . Feedback Blocked . | . . . . . Robot Schematics Acquired . | . . . . . Robots Built . | . . . . . Authchips . | . . . . . Time . | . . . . . Total Robot Build Rating . | . . . . . Part Schematics Acquired . | . . . . . Parts Built . | . . . . . Authchips . | . . . . . Time . | . . . . . Total Part Build Rating . | . . . . . Parts Repaired . | . . . . . Time . | . . . . . Parts Recycled . | . . . . . Recycled Matter . | . . . . . Retrieved Matter . | . . . . . Retrieved Components . | . . . . . Parts Scanalyzed . | . . . . . Part Schematics Acquired . | . . . . . Parts Damaged . | . . . . . Bothacking | -11 -10 -10 -10 -8 ------------ Run | Yrd Mat Min Sub Scr Used RIF Installer . | . . . . . Robots Hacked . | . . . . . Non-combat . | . . . . . Combat . | . . . . . Robot Hacks Applied . | . . . . . Relay Couplers Released . | . . . . . Fabnet Peak Effective % . | . . . . . Robots Rewired . | . . . . . Allies Hacked . | . . . . . Hacks Repelled . | . . . . . Allies | -11 -10 -10 -10 -8 -------- Run | Yrd Mat Min Sub Scr Total Allies 5 | . . 3 2 . Largest Group 4 | . . 3 4 4 Highest-Rated Group 70 | . . 40 70 70 Highest-Rated Ally 19 | . . 16 19 19 Total Orders . | . . . . . Ally Attacks 14 | . . 6 1 7 Total Damage 165 | . . 55 . 110 Kills 3 | . . 2 . 1 Allies Corrupted . | . . . . . Allies Melted . | . . . . . Intel | -11 -10 -10 -10 -8 ------- Run | Yrd Mat Min Sub Scr Active Infowar (turns) 1060 | 60 169 516 315 . Seismic 1060 | 60 169 516 315 . Robot Analysis Total 7 | . . . . 7 Derelict Logs Recovered 3 | . . 2 1 . Drone Launches . | . . . . . Drone Recoveries . | . . . . . Exploration | -11 -10 -10 -10 -8 ------------- Run | Yrd Mat Min Sub Scr Turns Passed 3481 | 174 169 516 571 2051 Spaces Moved 2047 | 92 103 264 456 1132 Core 10 | 6 . . . 4 Treads 1211 | 86 103 . . 1022 Legs 826 | . . 264 456 106 Wheels . | . . . . . Hover . | . . . . . Flight . | . . . . . Fastest Speed 50 | 50 160 120 120 50 Average Speed 146 | 152 160 120 120 161 Slowest Speed 190 | 160 160 120 120 190 Overloaded Moves . | . . . . . Propulsion Burnouts . | . . . . . Robots Hopped . | . . . . . Potential Cave-ins . | . . . . . Cave-ins Triggered . | . . . . . Exploration Rate (%) 39 | 4 21 71 22 80 Regions Visited 4 Branch Regions 3 Pre-discovered Areas . | . . . . . Known Exits Taken 1 | . 1 . . . Unknown Exits Taken 3 | 1 . 1 1 . Scrap Searched 8 | . . . . 8 Spaces Dug 12 | . . . 12 . Terrain Destroyed 34 | . . 2 32 . Melee . | . . . . . Projectile . | . . . . . AOE 34 | . . 2 32 . Terrain Rammed . | . . . . . Walls Destroyed . | . . . . . Machines Disabled . | . . . . . Actions | -11 -10 -10 -10 -8 --------- Run | Yrd Mat Min Sub Scr Total 2507 | 116 107 449 473 1362 Wait 198 | . . 170 11 17 Move 2043 | 91 102 263 455 1132 Hop . | . . . . . Pick Up 29 | 12 4 1 1 11 Fast Attach 2 | . . . . 2 Attach 9 | 7 . . . 2 Detach 1 | . . . . 1 Swap 11 | . . 4 2 5 Drop 18 | 1 . 1 1 15 Fire 18 | 5 . 8 3 2 Melee . | . . . . . Ram . | . . . . . Kick 2 | . . 2 . . Crush 1 | . 1 . . . Escape Stasis . | . . . . . Rewire 175 | . . . . 175 Trap . | . . . . . Miscellaneous . | . . . . . Route ------- -11/Scrapyard -10/Materials (discovered 5 exits: Mat x3 / *Min x2) -10/Mines (discovered 3 exits: *Mat x2 / [*Sub]) -10/Subcaves -8/Scraptown (discovered 2 exits: [*Fac x2]) History --------- Turn | Location | Event 16 | -11/Scrapyard | Discovered new exit (range 15) 175 | -11/Scrapyard | Entered Materials 175 | -10/Materials | Discovered new exit (range 8) 304 | -10/Materials | Identified exit to Mines 304 | -10/Materials | Identified exit to Materials 309 | -10/Materials | Build established: Mutant 344 | -10/Materials | Entered Mines 433 | -10/Mines | Discovered exit to Materials (range 10) 467 | -10/Mines | Learned Materials garrison access intel 467 | -10/Mines | Assisted by bots powering up and referring to "LRC-V3" 634 | -10/Mines | Received a Rocket Launcher from a helpful Derelict 660 | -10/Mines | Discovered exit to Materials (range 5) 663 | -10/Mines | Learned Materials machine intel 841 | -10/Mines | Discovered new exit (range 6) 860 | -10/Mines | Entered Subcaves 860 | -10/Subcaves | Accompanied by 3 allies 861 | -10/Subcaves | Approached by a straggling Scientist 1006 | -10/Subcaves | Learned Materials stockpile data 1085 | -10/Subcaves | Visited triangular shrine 1093 | -10/Subcaves | Found Prototype Device 1137 | -10/Subcaves | A swath of the cavern ceiling suddenly collapsed 1175 | -10/Subcaves | Identified V3-11A's Pendant 1251 | -10/Subcaves | Approached by friendly Subdweller 1334 | -10/Subcaves | Ambushed by angry Subdweller bent on revenge 1335 | -10/Subcaves | Befriended Subdweller 1344 | -10/Subcaves | Scientist uncovered a shortcut to Scraptown 1431 | -10/Subcaves | Entered Scraptown 1431 | -8/Scraptown | Accompanied by 4 allies 1545 | -8/Scraptown | Heard Great Nut preacher, LISTEN AND RECITE! 1816 | -8/Scraptown | Discovered new exit (range 5) 1970 | -8/Scraptown | Received an X-ray algorithm 1970 | -8/Scraptown | Visited Bundlers 2085 | -8/Scraptown | Visited Awakened 2111 | -8/Scraptown | Visited Cyclists 2170 | -8/Scraptown | Visited The Evicted 2215 | -8/Scraptown | Visited UFD Registry 2242 | -8/Scraptown | Visited Shadow of the Wyrm 2255 | -8/Scraptown | Visited SPCMW 2469 | -8/Scraptown | Registered with UFD as "Fibermech" 2519 | -8/Scraptown | Visited LU-1G1's Boring Crew 2544 | -8/Scraptown | Visited Analyses Database 2580 | -8/Scraptown | Visited Junk Repository 2833 | -8/Scraptown | Visited A0-MCA Data Center 2844 | -8/Scraptown | Given a B+ rating by A0-MCA 2847 | -8/Scraptown | Found A0-MCA's Component Scanner 2939 | -8/Scraptown | Discovered new exit (range 4) 3156 | -8/Scraptown | Visited Scrapoid Research Area 3460 | -8/Scraptown | Attacked by Scraptown defenders 3475 | -8/Scraptown | Core integrity fell below 50% 3482 | -8/Scraptown | Core integrity fell below 20% 3482 | -8/Scraptown | Destroyed by 1Y-RYI(j) with Overtuned Pulse Rifle Last Messages --------------- the cannons, all bots on deck!" 03466_ IA-IHK(R) destroyed. 03467_ Hvy. Missile Launcher destroyed. 03468_ Penetrated by Bolt. 03469_ Bolt penetrates Trooper 1a. 03469_ Trooper 1a destroyed. 03471_ Penetrated by Bolt. 03471_ Lgt. Deuterium Engine destroyed. 03473_ 08S01-D destroyed. 03473_ Penetrated by Bolt. 03473_ Lgt. Treads destroyed. 03473_ Penetrated by Bolt. 03474_ Lgt. Treads destroyed. 03474_ Machine disabled. 03475_ 9O-1E3(j) destroyed. 03475_ Flak Cannon destroyed. 03475_ Dropped Sml. Storage Unit. 03477_ Slug penetrates Wall. 03479_ Critical hit (Burn: +50). 03480_ Machine disabled. Map ----- +----------------------------------------------------+ | ?????????????????????????????????????????????????? | | ?????????????????????????????????????????????????? | | ?????????????????????????????????????????????????? | | ?????????????????????????????????????????????????? | | ?????????????????????????????????????????????????? | | ?????????????????????????????????????????????????? | | ?????????????????????????????????????????????????? | | ?????????????????????????????????????????????????? | | ?????????????????????????????????#####???????????? | | ?????????????????????????????????#"""#???????????? | | ??###################???####?????#" "#???????????? | | ?#"""##"""##""|##"""#??## ##????# < #???????????? | | ?#"" ##""!##"" ##!!"#### ###### ##??????????? | | ?#"" #??????????? | | ?# #??????????? | | ?####################### j###########??????????? | | ???????????????????????## ##????????????????????? | | ????????????????????????#z #?????????????????????? | | ????????????????????????# #?????????????????????? | | ????????????????????????#EE#????#????????????????? | | ????????????????????????#EE#?#?!#????????????????? | | ????????????????????????# # # ??????????????????? | | ????????????????????????# c# ???????????????????? | | ????????????????????????# c ????????????????????? | | ????????????????????????# #?????????????????????? | | ????????????????????????#@ #?????????????????????? | | ????????????????????????# ######????????????????? | | ????????????????????????# # ?????????????????? | | ????????????????????????#! # ??????????????????? | | ??????????????????# ????#!!## #??????????????????? | | ????????????????### #####xj## ###############????? | | ????????????""""""" """" h"" "## """ """ #????? | | ??????????? j "## " """"" #????? | | ??????????? ! "## """ #????? | | ??????????? [%= !"## #????? | | ??????????? [%"## "#????? | | ??????????? pjc[&[= ""#????? | | ????????????""""""""" """ E%"## """ "#????? | | ??????????????""""""""""" ! ## """"" ""#????? | | ?????????????????######"" "## """ "#????? | | ??????????????????????#"" "##############????? | | ??????????????????????#"" "#????"????????????? | | ??????????????????????#"" "#??? "??????????? | | "?????????????????###"" "#?? "?????????? | | "???????????####### #"" "## ""?????????? | | ???????? ""?????????? | | ????""??? "## ""?????????? | | ???? ?????######## #"" "#??"""""??????????? | | ???" "???????????###"" "#???"?????????????? | | ?? "" "" ????????????#"" "#?????????????????? | +----------------------------------------------------+ Best States ------------- Heat Dissipation 25 Energy Generation 14 Energy Capacity 250 Matter Stores 300 Matter Capacity 300 Sight Range 16 Terrain Scan Density 10 Armor Coverage 225 Evasion (%) 55 Recoil Reduction 2 Item Schematics ----------------- None Robot Schematics ------------------ None Fabricated ------------ Nothing Repaired ---------- Nothing Alien Tech Used ----------------- None Achievements -------------- Armchair Analyst Challenges ------------ None Game ------ Seed PointProtonJets Manual? 0 Play Time 00:22:13 Cumulative 17.8 hours Start 2025.07.20 @ 05:55:17 End 2025.07.20 @ 06:14:28 Sessions 1 Manual Loads 0 Difficulty Rogue Special Mode None Game No. 53 Rogue 53 Adventurer 0 Explorer 0 Win Type - Total 0 Types 0/0/0/0/0/0/0/0/0/0 Lore% 19 Gallery% 20 Achievement% 17 Wizard Run 0 Options --------- Layout 1 ASCII 0 Keyboard 0 Movement Mouse Keybinds 0 Fullscreen 1 Font 24/Smallcaps Map View 50x40 Zoom Use 0% Tactical HUD 1 Map Filters NONE Filters NONE Steam 1 RUN: 71438d11-6597-4c33-a4b8-104bd9dfffda